Cogmind - Beta 16.1 @@@ ROGUE MODE // 2026.04.09 @ 23:01:00 Player: Crimson Result: Destroyed by Y-45 Defender with Beam Rifle Performance ------------- Evolutions (1) 500 Regions Visited (3) 600 Robots Destroyed (21) 105 Value Destroyed (625) 625 Prototype IDs (2) 40 Alien Tech Used (0) 0 Bonus (0) 0 TOTAL SCORE: 1870 Bonus ------- None Cogmind --------- Core Integrity 0/400 Matter 207/300 Energy 100/100 System Corruption 0% Temperature Warning (325) Movement Core (100) Ox1 Location -9/Storage Parts ------- > --- POWER (2) -------- (None) > --- PROPULSION (2) --- (None) > --- UTILITY (2) ------ Visual Processing Unit > --- WEAPON (3) ------- Mini Assault Cannon > --- INVENTORY (5) ---- Improved Ion Engine Backup Propulsion III Grenade Launcher Peak State ------------ > --- POWER ------------ Ion Engine Cooled Ion Engine > --- PROPULSION ------- Aluminum Leg Aluminum Leg > --- UTILITY ---------- Visual Processing Unit ECM Suite > --- WEAPON ----------- Particle Gun Light Assault Rifle Mini Assault Cannon > --- INVENTORY -------- Improved Ion Engine Light Treads Backup Propulsion III Grenade Launcher [Rating: 17] Favorites ----------- Power Ion Engine Engine Ion Engine Propulsion Wheel Treads Light Treads Leg Aluminum Leg Wheel Wheel Hover Unit Backup Propulsion III Utility Visual Processing Unit Device ECM Suite Processor Visual Processing Unit Weapon Light Assault Rifle Energy Gun Particle Gun Ballistic Gun Light Assault Rifle Ballistic Cannon Mini Assault Cannon Launcher Grenade Launcher Build | -11 -10 -9 -9 ------- Run | Yrd Mat Mat Sto Slots Evolved 2 | . . 2 . Power 1 | . . 1 . Propulsion . | . . . . Utility . | . . . . Weapon 1 | . . 1 . Parts Attached 18 | 5 4 6 3 Power 4 | 1 1 2 . Engine 4 | 1 1 2 . Core . | . . . . Reactor . | . . . . Propulsion 6 | 2 . 2 2 Treads 1 | . . . 1 Leg 3 | . . 2 1 Wheel 2 | 2 . . . Hover . | . . . . Flight . | . . . . Utility 2 | . 2 . . Device 1 | . 1 . . Storage . | . . . . Processor 1 | . 1 . . Hackware . | . . . . Protection . | . . . . Artifact . | . . . . Weapon 6 | 2 1 2 1 Energy Gun 2 | 1 . 1 . Energy Cannon . | . . . . Ballistic Gun 2 | 1 1 . . Ballistic Cannon 1 | . . . 1 Launcher 1 | . . 1 . Special Weapon . | . . . . Impact Weapon . | . . . . Slashing Weapon . | . . . . Piercing Weapon . | . . . . Special Melee Weapon . | . . . . Unidentified Prototypes 2 | . . 1 1 Parts Lost 13 | . 1 4 8 Power 4 | . . 2 2 Propulsion 5 | . 1 1 3 Utility 1 | . . . 1 Weapon 3 | . . 1 2 Highest Loss Streak 8 | . 1 2 8 To Critical Strikes . | . . . . Average Backups 4 | 1 4 4 3 Power . | . 1 . 1 Propulsion 2 | 1 2 2 1 Utility . | . . . . Weapon . | . . . . Tool/Special . | . . . . Unused Backups 1 | . . . 1 Power 1 | . . . 1 Propulsion . | . . . . Utility . | . . . . Weapon . | . . . . Tool/Special . | . . . . Average Slot Usage (%) 91 | . 94 86 93 Engine 16 | . 14 16 21 Leg 7 | . . 9 20 Wheel 11 | . 22 4 . Hover 2 | . 2 4 . Device 11 | . 12 11 9 Processor 11 | . 13 11 11 Energy Gun 6 | . 3 7 10 Ballistic Gun 18 | . 24 16 9 Ballistic Cannon 1 | . . . 5 Launcher 3 | . . 5 5 Peak Build Rating 17 | 5 10 15 17 Average Rating 9 | 3 7 11 14 On Entrance 6 | . 5 10 12 Avg Prop Armor Cover (%) 5 | . 6 5 . Naked Turns . | . . . . Heaviest Build 23 | 7 11 22 23 Greatest Support 20 | 20 20 20 20 Greatest Overweight (x) 6 | . 1 6 3 Average Overweight (x) . | . . . 1 Largest Inventory Capacity 5 | 5 5 5 5 Average Capacity 5 | 5 5 5 5 Most Carried 5 | 4 5 5 5 Average Carried 4 | 1 4 4 3 Final Capacity 5 | 5 5 5 5 Final Carried 5 | 4 5 4 3 Class Distribution -------------------- 59% | Mutant 40% | Skirmisher Dominant Class ---------------- Mutant | -10/Materials Skirmisher | -9/Materials Skirmisher | -9/Storage Resources | -11 -10 -9 -9 ----------- Run | Yrd Mat Mat Sto Matter Collected 529 | 259 103 167 . Remotely . | . . . . Salvage Created 626 | 37 205 372 12 Parts 36 | 1 18 17 . Haulers Intercepted . | . . . . Recyclers Shooed . | . . . . Parts Field Recycled . | . . . . Retrieved Matter . | . . . . Parts Self-Destructed . | . . . . Prevented . | . . . . Parts Restored . | . . . . Kills | -11 -10 -9 -9 ------- Run | Yrd Mat Mat Sto Combat Hostiles Destroyed 19 | 1 8 9 1 Guns 16 | 1 8 7 . Cannons 1 | . . . 1 AOE 2 | . . 2 . Classes Destroyed 5 | 1 2 2 . Watcher 2 | . 1 1 . Swarmer 6 | . 6 . . Grunt 9 | 1 2 6 . Brawler 1 | . . 1 . Sentry 3 | . . 2 1 Best Kill Streak 3 | 1 3 3 1 Combat Bots Only 3 | 1 3 3 1 Max Kills in Single Turn 2 | 1 2 2 1 Gunslinging 1 | . 1 . . Exploded 2 | . . 2 . Melee . | . . . . Uniques/NPCs Destroyed . | . . . . Combat | -11 -10 -9 -9 -------- Run | Yrd Mat Mat Sto Hostile Shots Fired 143 | 4 29 55 55 Missed 30 | . 6 13 11 Hits 113 | 4 23 42 44 Melee 1 | . . 1 . Projectile 112 | 4 23 41 44 Critical Strikes 3 | . . 2 1 Damage Taken 1511 | 46 207 585 673 Core 484 | 12 67 181 224 Absorbed by Shields . | . . . . Core Remaining (%) 81 | 95 68 . . Volleys Fired 68 | 3 18 29 18 Largest 3 | 2 2 3 3 Hottest 125 | 60 60 115 125 Shots Fired 129 | 6 36 59 28 Gun 107 | 6 36 53 12 Cannon 16 | . . . 16 Launcher 6 | . . 6 . Special . | . . . . Kinetic 92 | 3 31 37 21 Thermal 23 | . . 16 7 Explosive 6 | . . 6 . Electromagnetic 8 | 3 5 . . Robot Hit Streak 15 | 1 2 15 7 Robot Miss Streak 5 | 1 5 4 4 Penetration Max . | . . . . Secondary Targets 5 | . 3 2 . Max Gunslinging Chain 1 | . 1 1 . Shots Hit Robots 73 | 3 14 39 17 Core Hits 37 | 2 12 21 2 Critical Kills . | . . . . Critical Parts Destroyed . | . . . . Critical Strikes 1 | . . . 1 Blast 1 | . . . 1 Melee Attacks . | . . . . Impact . | . . . . Slashing . | . . . . Piercing . | . . . . Sneak Attacks . | . . . . Combat Hostiles . | . . . . Follow-up Attacks . | . . . . Damage Inflicted 1318 | 34 173 720 391 Guns 718 | 34 173 458 53 Cannons 338 | . . . 338 Explosions 262 | . . 262 . Melee . | . . . . Ramming . | . . . . Kinetic 756 | 34 163 203 356 Thermal 290 | . . 255 35 Explosive 262 | . . 262 . Electromagnetic 10 | . 10 . . Impact . | . . . . Slashing . | . . . . Piercing . | . . . . Highest Corruption . | . . . . Average Corruption . | . . . . Corruption Purged . | . . . . Corruption Blocked . | . . . . Overload Shots . | . . . . Overflow Damage . | . . . . Projectiles . | . . . . Explosions . | . . . . Melee . | . . . . Knockbacks . | . . . . Impact . | . . . . Kinetic . | . . . . Secondary . | . . . . Self-Inflicted Damage 25 | . . 25 . Shots 2 | . . 2 . Rammed . | . . . . Targets Rammed . | . . . . Kicked . | . . . . Crushed . | . . . . Highest Temperature 354 | 24 6 341 354 Average Temperature 149 | 16 6 131 232 Received Heat Transfer 582 | 24 48 312 198 Effects 5 | . . 3 2 Interference 3 | . . 3 . Short Circuit 1 | . . . 1 Damage (minor) 1 | . . . 1 Siege Activations . | . . . . Martial Activations . | . . . . Shielding Activations . | . . . . Robots Disrupted . | . . . . Combat Hostiles . | . . . . Robots Corrupted . | . . . . Combat Hostiles . | . . . . Parts Fried . | . . . . Impact Corruptions . | . . . . Robots Melted . | . . . . Combat Hostiles . | . . . . Parts Melted . | . . . . Heat Transferred 666 | . . 592 74 Parts Sabotaged . | . . . . Parts Stolen . | . . . . Parts Stripped . | . . . . Power Chain Reactions . | . . . . Alert | -11 -10 -9 -9 ------- Run | Yrd Mat Mat Sto Maximum Alert Level . | . . . . Low Security (%) 100 | 100 100 100 100 Level 1 . | . . . . Level 2 . | . . . . Level 3 . | . . . . Level 4 . | . . . . Level 5 . | . . . . High Security . | . . . . Max Security . | . . . . Peak Influence 140 | 20 90 140 43 Initial 42 | . 6 9 42 Average 37 | 1 43 53 11 Influence Increases 577 | 20 222 284 51 Destroy 0b10 Robot/C 380 | 20 160 180 20 Destroy 0b10 Robot/NC 10 | . 5 5 . Destroy Leader 84 | . 22 52 10 Successful Hack 23 | . 19 . 4 Disable Machine 45 | . 15 15 15 Destroy Structure 35 | . 1 32 2 Influence Decreases 577 | 10 208 207 152 Entered New Map 78 | . 4 15 59 Time Decay 426 | 10 194 165 57 Lost Part 73 | . 10 27 36 Squads Dispatched 2 | . . 1 1 Investigation . | . . . . Extermination . | . . . . Reinforcement 1 | . . 1 . Assault . | . . . . Garrison 1 | . . . 1 Intercept . | . . . . Searches Triggered . | . . . . Construction Impeded . | . . . . Haulers Reinforced . | . . . . Active Scanning Responses . | . . . . Cargo Convoy Interrupts . | . . . . Stealth | -11 -10 -9 -9 --------- Run | Yrd Mat Mat Sto Distress Signals 2 | . . 2 . Communications Jammed . | . . . . Distress Signals . | . . . . Times Spotted 33 | 1 11 18 3 Peak Tracking Total 5 | 1 3 5 3 Tactical Retreats 4 | . 1 3 . ECM-based Alert Blocks 6 | . 1 5 . Traps | -11 -10 -9 -9 ------- Run | Yrd Mat Mat Sto Traps Triggered . | . . . . Indirectly . | . . . . Trap Hack Attempts . | . . . . Triggered . | . . . . Disarmed . | . . . . Reprogrammed . | . . . . Reused . | . . . . Traps Extracted . | . . . . Installed . | . . . . Triggered . | . . . . Machines | -11 -10 -9 -9 ---------- Run | Yrd Mat Mat Sto Machines Disabled 3 | . 1 1 1 Max in Single Turn 1 | . 1 1 1 Machines Repaired . | . . . . Machines Dismantled . | . . . . Machines Sabotaged . | . . . . Overloaded Fab Kills . | . . . . Hacking | -11 -10 -9 -9 --------- Run | Yrd Mat Mat Sto Machines Accessed 6 | . 4 . 2 Terminals 3 | . 2 . 1 Fabricators . | . . . . Repair Stations 1 | . 1 . . Recycling Units 1 | . 1 . . Scanalyzers . | . . . . Garrison Access 1 | . . . 1 Total Hacks 16 | . 13 . 3 Successful 12 | . 10 . 2 Failed 4 | . 3 . 1 Catastrophic 1 | . 1 . . Database Lockouts . | . . . . Manual 10 | . 9 . 1 Terminals 8 | . 6 . 2 Fabricators . | . . . . Repair Stations 3 | . 3 . . Recycling Units 4 | . 4 . . Scanalyzers . | . . . . Garrison Access 1 | . . . 1 Terminal Hacks 6 | . 5 . 1 Record 1 | . 1 . . Open Door 1 | . . . 1 Alert Level 1 | . 1 . . Locate Traps 1 | . 1 . . Maintenance Status 1 | . 1 . . Hauler Manifests 1 | . 1 . . Fabricator Hacks . | . . . . Repair Station Hacks 1 | . 1 . . Refit 1 | . 1 . . Recycling Unit Hacks 4 | . 4 . . Recycle Component 1 | . 1 . . Process 1 | . 1 . . Report Inventory 1 | . 1 . . Retrieve Components 1 | . 1 . . Scanalyzer . | . . . . Garrison Access Hacks 1 | . . . 1 Unlock Access 1 | . . . 1 Unauthorized Hacks . | . . . . Terminals . | . . . . Fabricators . | . . . . Repair Stations . | . . . . Recycling Units . | . . . . Scanalyzers . | . . . . Garrison Access . | . . . . Data Cores Recovered . | . . . . Used . | . . . . Hacking Detections 5 | . 3 . 2 Full Trace Events . | . . . . Feedback Events . | . . . . Feedback Blocked . | . . . . Robot Schematics Acquired . | . . . . Robots Built . | . . . . Authchips . | . . . . Time . | . . . . Total Robot Build Rating . | . . . . Part Schematics Acquired . | . . . . Parts Built . | . . . . Authchips . | . . . . Time . | . . . . Total Part Build Rating . | . . . . Part Studies Acquired . | . . . . Parts Repaired . | . . . . Time . | . . . . Parts Recycled 1 | . 1 . . Recycled Matter 4 | . 4 . . Retrieved Matter . | . . . . Retrieved Components 10 | . 10 . . Parts Scanalyzed . | . . . . Part Schematics Acquired . | . . . . Parts Damaged . | . . . . Bothacking | -11 -10 -9 -9 ------------ Run | Yrd Mat Mat Sto Used RIF Installer . | . . . . Robots Hacked . | . . . . Non-combat . | . . . . Combat . | . . . . Robot Hacks Applied . | . . . . Relay Couplers Released . | . . . . Fabnet Peak Effective % . | . . . . Robots Rewired . | . . . . Allies Hacked . | . . . . Hacks Repelled . | . . . . Allies | -11 -10 -9 -9 -------- Run | Yrd Mat Mat Sto Total Allies . | . . . . Largest Group . | . . . . Highest-Rated Group . | . . . . Highest-Rated Ally . | . . . . Total Orders . | . . . . Ally Attacks . | . . . . Total Damage . | . . . . Kills . | . . . . Allies Corrupted . | . . . . Allies Melted . | . . . . Intel | -11 -10 -9 -9 ------- Run | Yrd Mat Mat Sto Active Infowar (turns) 1051 | . 408 423 220 Optics 1051 | . 408 423 220 ECM 986 | . 382 423 181 Robot Analysis Total . | . . . . Derelict Logs Recovered . | . . . . Drone Launches . | . . . . Drone Recoveries . | . . . . Exploration | -11 -10 -9 -9 ------------- Run | Yrd Mat Mat Sto Turns Passed 1198 | 120 435 423 220 Spaces Moved 758 | 75 412 180 91 Core 22 | 20 . 1 1 Treads 1 | . . . 1 Legs 185 | . . 96 89 Wheels 412 | 55 357 . . Hover 138 | . 55 83 . Flight . | . . . . Fastest Speed 50 | 50 80 85 160 Average Speed 118 | 72 91 165 189 Slowest Speed 350 | 80 165 350 200 Overloaded Moves . | . . . . Propulsion Burnouts . | . . . . Robots Hopped . | . . . . Potential Cave-ins . | . . . . Cave-ins Triggered . | . . . . Exploration Rate (%) 30 | 6 70 21 23 Regions Visited 3 Branch Regions 1 Pre-discovered Areas . | . . . . Known Exits Taken . | . . . . Unknown Exits Taken 3 | 1 1 1 . Scrap Searched . | . . . . Spaces Dug . | . . . . Terrain Destroyed 37 | . . 36 1 Melee . | . . . . Projectile 1 | . . . 1 AOE 36 | . . 36 . Terrain Rammed . | . . . . Walls Destroyed . | . . . . Machines Disabled . | . . . . Actions | -11 -10 -9 -9 --------- Run | Yrd Mat Mat Sto Total 939 | 134 435 256 114 Wait 77 | 43 . 34 . Move 755 | 74 411 179 91 Hop . | . . . . Pick Up 17 | 9 2 5 1 Fast Attach 2 | . 2 . . Attach 15 | 5 . 7 3 Detach 2 | . . 1 1 Swap 2 | . 2 . . Drop 1 | . . 1 . Fire 68 | 3 18 29 18 Melee . | . . . . Ram . | . . . . Kick . | . . . . Crush . | . . . . Escape Stasis . | . . . . Rewire . | . . . . Trap . | . . . . Miscellaneous . | . . . . Route ------- -11/Scrapyard -10/Materials (discovered 3 exits: [*Mat x2] / [*Min]) -9/Materials -9/Storage (discovered 1 exit: Gar) History --------- Turn | Location | Event 2 | -11/Scrapyard | Met Revision 17 99 | -11/Scrapyard | Discovered new exit (range 8) 121 | -11/Scrapyard | Entered Materials 195 | -10/Materials | Discovered new exit (range 3) 304 | -10/Materials | Build established: Mutant 351 | -10/Materials | Discovered new exit (range 7) 528 | -10/Materials | Discovered new exit (range 17) 556 | -10/Materials | Entered another Materials area 556 | -9/Materials | Evolved 2 slots: Power x1, Weapon x1 789 | -9/Materials | Discovered new exit (range 5) 979 | -9/Materials | Entered Storage 1079 | -9/Storage | Build established: Skirmisher 1152 | -9/Storage | Identified exit to Garrison 1158 | -9/Storage | Garrison activated, responded to threat 1161 | -9/Storage | Core integrity fell below 50% 1194 | -9/Storage | Core integrity fell below 20% 1199 | -9/Storage | Destroyed by Y-45 Defender with Beam Rifle Last Messages --------------- Aluminum Leg broken. Overheating: Short circuit. Particle Gun destroyed. K-01 Serf cleans the Garrison Access. Ion Engine destroyed. Y-45 Defender destroyed. Overheating: Lgt. Treads damaged (-76). Broken Aluminum Leg destroyed. K-01 Serf collects debris. Critical hit (Burn: +37). Lgt. Treads destroyed. K-01 Serf collects debris. Y-45 Defender Lgt. Armor Plating blasted off. K-01 Serf collects debris. U-05 Engineer builds a Wall. K-01 Serf collects debris. Cld. Ion Engine overload failure. Cld. Ion Engine destroyed. K-01 Serf collects debris. [Achievement: First Step to Greatness] Map ----- +----------------------------------------------------+ | ????????????????????????????????????????????? | | ????????????????????????????????????????????? | | ????????????????????????????????????????????? | | ????????????????????????????????????????????? | | ????????????????????????????????????????????? | | ????????????????????????????????????????????? | | ??????????????????????##????????????????????? | | ??????????????????????# #???????????????????? | | ???????? ??# ???????# ???????????????????? | | ???????# ??# ???????# ???????????????????? | | ???????# ### ???????# """#???????????????? | | ??? ???# ???????# """#???????????????? | | ???? ??# ???????#[ """#???????????????? | | ???? ??# "" ??????# """#???????????????? | | ????? ?# T" ??????? ##??????????????? | | ????? ?# "" ??????? ""??????????????? | | ?????? # ???????? Y???????????????? | | ?????? # ? ???????? "???????????????? | | ???????/ #?# ????????? ????????????????? | | ???????# #?# ????????? ?##?????????????? | | ???????# #?# ##########+##T#"????????????? | | ???????# #?# "????????????? | | ???????# #?# %%%% "????????????? | | ######## #####+#########k####"????????????? | | ## # !Y ###?????????????? | | + # @%% "#?????????????? | | ## # ^ T"#?????????????? | | #########+### """ # ^ ""#?????????????? | | ????????# T## """ # ""Y/// ###?????????????? | | ????????# ### """ # "G> /// #???????????????? | | ????????# #?# # "" //^ #???????????????? | | ????????###?# # % #???????????????? | | ?????????????################???????????????? | | | | | | | | | | | | | | | | | | | | | | | | | | | | | | | | | | | +----------------------------------------------------+ Best States ------------- Heat Dissipation 28 Energy Generation 23 Energy Capacity 430 Matter Stores 300 Matter Capacity 300 Sight Range 18 Terrain Scan Density 10 ECM Strength 1 Evasion (%) 55 Recoil Reduction 1 Item Schematics ----------------- None Robot Schematics ------------------ None Fabricated ------------ Nothing Repaired ---------- Nothing Studied --------- None Alien Tech Used ----------------- None Achievements -------------- Crack Shot First Step to Greatness Fitting Room I Have A Map? Risk Taker Shopping List Spot Them First Storm Trooper There's More Where That Came From Troublemaker Uninvited Guest Challenges ------------ None Game ------ Seed RecyclingThrusterExoskeleton Manual? 0 Play Time 00:45:15 Cumulative 0.7 hours Start 2026.04.09 @ 21:57:22 End 2026.04.09 @ 23:01:00 Sessions 3 Manual Loads 0 Difficulty Rogue Special Mode None Game No. 1 Rogue 1 Adventurer 0 Explorer 0 Win Type - Total 0 Types 0/0/0/0/0/0/0/0/0/0 Lore% 0 Gallery% 1 Achievement% 2 Wizard Run 0 Options --------- Layout 0 ASCII 0 Keyboard 0 Movement Mouse Keybinds 0 Fullscreen 2 Font 18/SmallcapsGlow Map View 76x50 Zoom Use 0% Tactical HUD 0 Map Filters NONE Filters NONE Steam 0 RUN: bae84905-f38a-4e03-9db4-da69c11cdd1e